bitfinex/quotes_ETHUSD_20250807
["timestamp","ask_amount","ask_price","bid_price","bid_amount"]
[1754568430250,0.67120001,3831.7,3831.6,11.52162408]
[1754568430555,1.13310001,3831.7,3831.6,7.38362408]
[1754568430715,1.13310001,3831.7,3831.6,9.74687576]
[1754568431058,1.13310001,3831.7,3831.6,9.74787576]
[1754568431347,1.13310001,3831.7,3831.6,5.60987576]
[1754568431528,1.13310001,3831.7,3831.6,9.74687576]
[1754568432047,1.13310001,3831.7,3831.6,5.60987576]
[1754568432222,1.13310001,3831.7,3831.6,6.74487576]
[1754568432422,1.13310001,3831.7,3831.6,9.74487576]
[1754568433350,1.13310001,3831.7,3831.6,3.0]
[1754568433681,1.13310001,3831.7,3831.6,7.135]
[1754568434028,1.13310001,3831.7,3831.3,2.61006547]
[1754568434229,1.1331,3831.6,3831.1,8.87915482]
[1754568434420,1.1331,3831.5,3830.4,2.61068166]
[1754568434626,2.6098534,3831.7,3830.8,6.269]
[1754568434627,1.1331,3831.4,3830.8,6.269]
[1754568434823,0.6712,3831.4,3831.3,2.61008012]
[1754568435150,0.67120001,3831.7,3831.6,3.0]
[1754568435351,0.67120001,3831.7,3831.6,7.134]
[1754568435653,0.67120001,3831.7,3831.6,11.52927206]
[1754568435654,1e-08,3831.7,3831.6,11.52927206]
[1754568436151,1e-08,3831.7,3831.6,11.53427206]
[1754568436356,1e-08,3831.7,3831.6,10.98327206]
[1754568436560,1e-08,3831.7,3831.6,11.11367206]
[1754568437742,1e-08,3831.7,3831.6,6.97567206]
[1754568437942,1e-08,3831.7,3831.6,11.11367206]
[1754568438545,0.002,3832.3,3832.2,3.15946714]
[1754568438854,0.002,3832.8,3832.7,5.60912672]
[1754568439055,0.002,3832.8,3832.7,16.01912672]
[1754568443175,0.002,3832.8,3832.7,16.01412672]
[1754568444863,0.002,3832.8,3832.7,11.87712672]
[1754568445068,0.6616,3832.8,3832.7,16.01012672]
[1754568445385,0.6616,3832.8,3832.7,17.86906051]
[1754568445551,1.1274,3832.8,3832.7,13.73906051]
[1754568445751,1.1274,3832.8,3832.7,16.00612672]
[1754568446360,0.4678,3832.8,3832.7,16.00612672]
[1754568446562,0.002,3832.8,3832.7,16.00612672]
[1754568447171,0.6616,3832.8,3832.7,16.00512672]
[1754568447384,1.1274,3832.8,3832.7,16.00512672]
[1754568447580,1.1274,3832.8,3832.7,17.14506549]
[1754568448170,0.6616,3832.8,3832.7,17.14506549]
[1754568448488,0.002,3832.8,3832.7,17.27546549]
[1754568453711,0.002,3833.5,3833.4,6.15865028]
[1754568454001,0.002,3833.5,3833.4,11.60267939]
[1754568454162,1e-08,3834.2,3834.1,2.60817401]
[1754568454366,1e-08,3834.2,3834.1,34.20490662]
[1754568454672,0.6616,3835.7,3835.2,6.15742594]
[1754568454872,0.6616,3835.7,3835.2,28.60704141]
[1754568455088,0.6616,3835.7,3835.2,28.73744141]
[1754568455695,0.002,3835.7,3835.2,24.60644141]
[1754568455899,1.12540001,3835.3,3835.2,28.73644141]
[1754568456237,1.12540001,3835.3,3835.2,24.60644141]
[1754568456492,1.12540001,3835.3,3835.2,28.73444141]
[1754568456692,0.65960001,3835.3,3835.2,28.73444141]
[1754568457066,1e-08,3835.3,3835.2,28.73444141]
[1754568458574,0.65960001,3835.3,3835.2,17.5563198]
[1754568458764,1.12540001,3835.3,3835.2,17.0023198]
[1754568458968,1.12540001,3835.3,3835.2,16.12582594]
[1754568459703,1.12540001,3835.3,3835.2,12.00282594]
[1754568459865,1.12540001,3835.3,3835.2,16.12582594]
[1754568460216,1.12540001,3835.3,3835.2,5.73782594]
[1754568460417,1.12540001,3835.3,3835.2,16.12382594]
[1754568460586,1e-08,3835.3,3835.2,17.9969598]
[1754568460908,1.12540001,3835.3,3835.2,7.6109598]
[1754568461111,1.12540001,3835.3,3835.2,16.12282594]
[1754568461625,1e-08,3835.3,3835.2,16.67282594]
[1754568462198,1e-08,3835.3,3835.2,16.67482594]
[1754568462616,1e-08,3835.3,3835.2,12.55182594]
[1754568462781,0.002,3835.8,3835.7,6.15708605]
[1754568462981,0.6616,3835.8,3835.7,5.60708605]
[1754568463178,1.1274,3835.8,3835.7,3.1304]
[1754568463490,0.6616,3835.8,3835.7,16.13748605]
[1754568463686,1.1274,3835.8,3835.7,18.82336533]
[1754568464078,0.6616,3835.8,3835.7,14.68536533]
[1754568464273,1.1274,3835.8,3835.7,18.82436533]
[1754568465910,1.1274,3835.8,3835.7,18.82036533]
[1754568466215,1.1274,3835.8,3835.7,13.5294]
[1754568466507,1.1274,3835.8,3835.7,16.13648605]
[1754568466711,1.1274,3835.8,3835.7,16.13448605]
[1754568467089,0.002,3835.8,3835.7,16.68448605]
[1754568467293,0.002,3835.8,3835.7,19.36736533]
[1754568469184,0.002,3836.2,3835.7,19.36736533]
[1754568469185,0.002,3836.2,3836.1,3.15681421]
[1754568469385,0.002,3836.3,3836.2,6.15674625]
[1754568469581,2.60514161,3838.6,3836.1,21.49300396]
[1754568469582,0.6596,3837.7,3837.6,2.60579528]
[1754568469902,0.6596,3837.7,3837.6,16.52696271]
[1754568470101,0.4658,3838.1,3838.0,2.60552371]
[1754568470323,2.73545971,3838.7,3838.0,4.2674]
[1754568470614,0.6526,3838.6,3838.0,4.2674]
[1754568470812,0.4628,3838.5,3838.2,2.60538794]
[1754568471013,0.4628,3838.4,3838.3,4.137]
[1754568471608,0.4628,3838.4,3838.2,0.1304]
[1754568471985,3.38788423,3838.4,3838.3,10.396]
[1754568472190,0.4628,3838.4,3838.3,4.135]
[1754568472822,1.1154,3838.4,3838.3,4.135]
[1754568473186,1.1154,3838.4,3838.3,6.74032006]
[1754568473504,2.6048925,3839.0,3838.3,6.74032006]
[1754568473505,0.1304,3839.0,3838.5,2.60514155]
[1754568473704,0.4628,3838.8,3838.7,5.60503648]
[1754568473893,1.1154,3838.8,3838.7,9.73903648]
[1754568474097,1.1154,3838.8,3838.7,16.13243648]
[1754568474302,2.60452254,3839.5,3838.7,16.13243648]
[1754568474303,1.33478009,3839.5,3838.8,2.60492693]
[1754568474504,1.33478009,3839.5,3838.9,4.136]
[1754568474505,1.1154,3839.2,3838.9,4.136]
[1754568474718,1.1154,3839.1,3839.0,0.1304]
[1754568474918,3.85060178,3839.1,3838.7,3.0]
[1754568475125,3.85060178,3839.1,3838.8,6.261]
[1754568475126,1.1154,3839.0,3838.8,6.261]
[1754568475329,1.37409116,3839.0,3838.9,4.135]
[1754568475497,1.1154,3838.9,3838.8,6.261]
[1754568476025,1.1154,3838.9,3838.8,10.396]
[1754568477528,1.1154,3838.9,3838.8,10.393]
[1754568479726,1.1154,3838.9,3838.8,10.39]
[1754568481107,1.1154,3838.9,3838.8,4.125]
[1754568481316,2.60526765,3838.4,3837.6,6.259]
[1754568481633,1.2458,3838.3,3837.7,4.2574]
[1754568481818,1.1154,3838.2,3837.7,4.2574]
[1754568482018,1.1154,3838.1,3837.8,2.60560814]
[1754568482334,3.002,3839.7,3837.9,4.127]
[1754568482335,0.4628,3838.6,3837.9,4.127]
[1754568482535,0.4628,3838.6,3838.4,0.1304]
[1754568482740,0.4628,3838.6,3838.5,4.126]
[1754568482906,1.1154,3838.6,3838.5,4.126]
[1754568483304,1.1154,3838.6,3838.4,0.1304]
[1754568483637,2.60540605,3838.2,3837.7,0.1304]
[1754568483838,2.73574311,3838.3,3837.8,4.126]
[1754568484039,1.1154,3838.2,3837.8,4.126]
[1754568484534,1.1154,3838.1,3837.8,4.126]
[1754568484735,2.60464147,3839.3,3837.6,6.259]
[1754568484736,2.60564607,3837.9,3837.6,6.259]
[1754568484901,2.60572738,3837.7,3837.6,6.259]
[1754568485104,3.72112738,3837.7,3837.6,6.259]
[1754568485313,3.72112738,3837.7,3837.6,9.909]
[1754568488141,3.72112738,3837.7,3837.6,5.784]
[1754568488441,1.1154,3837.7,3835.9,8.86589455]
[1754568488610,3.37210461,3837.9,3836.0,4.12]
[1754568488611,1.82472112,3837.6,3836.0,4.12]
[1754568488811,1.1154,3837.6,3836.1,3.884]
[1754568489029,2.60586319,3837.5,3836.8,2.60633684]
[1754568489343,2.60586319,3837.5,3836.9,4.122]
[1754568489722,2.60587522,3837.5,3836.9,4.122]
[1754568489937,3.72119764,3837.6,3837.0,2.60617387]
[1754568490141,1.1154,3837.6,3837.1,4.122]
[1754568490447,3.25846319,3837.5,3837.1,4.122]
[1754568490611,2.60594425,3837.4,3837.1,4.122]
[1754568491207,2.60597972,3837.4,3837.1,4.122]
[1754568491430,0.6526,3837.5,3837.1,4.122]
[1754568491831,2.60587237,3837.5,3837.1,4.122]
[1754568492032,3.25859414,3837.4,3837.1,4.122]
[1754568492539,2.60600194,3837.3,3837.1,4.122]
[1754568493343,3.25854524,3837.4,3837.1,4.122]
[1754568493514,3.25854953,3837.4,3837.1,4.122]
[1754568493714,3.25854953,3837.4,3836.5,3.49052851]
[1754568493715,2.60610975,3837.2,3836.5,2.60649477]
[1754568494026,2.60610975,3837.2,3836.3,6.73366084]
[1754568494027,2.6060794,3837.2,3836.3,6.73366084]
[1754568494225,0.6526,3837.2,3836.6,2.60646571]
[1754568494426,0.6526,3837.2,3836.7,2.6063866]
[1754568494625,0.6526,3837.2,3836.8,4.129]
[1754568494826,2.60608354,3837.2,3836.6,2.60645933]
[1754568495040,3.25861569,3837.3,3836.7,4.128]
[1754568495218,0.6526,3837.2,3835.7,6.26]
[1754568495423,0.1304,3836.7,3836.2,2.60673418]
[1754568495626,0.6526,3836.6,3836.3,4.128]
[1754568495830,0.1304,3836.7,3836.3,6.73463617]
[1754568496026,3.06888351,3837.2,3836.4,0.1304]
[1754568496232,2.73653839,3837.1,3836.4,2.73699114]
[1754568496746,2.60588511,3837.5,3836.8,2.60630862]
[1754568496947,0.1304,3837.3,3836.9,4.128]
[1754568497149,0.6526,3837.2,3836.9,4.128]
[1754568499040,0.1304,3837.3,3836.9,4.128]
[1754568499231,0.1304,3837.3,3836.9,6.73426512]
[1754568499425,0.1304,3837.3,3836.9,4.128]
[1754568499630,0.1304,3837.6,3837.0,2.73660276]
[1754568499830,0.1304,3837.6,3837.1,2.6060943]
[1754568500031,0.1304,3837.6,3837.2,4.123]
[1754568500255,0.7707,3837.6,3837.2,4.123]
[1754568500748,0.1304,3837.6,3837.2,4.123]
[1754568501122,0.7707,3837.6,3837.2,4.123]
[1754568501322,0.6403,3837.5,3837.2,4.123]
[1754568501546,0.4557,3837.5,3837.2,4.123]
[1754568501732,0.6403,3837.4,3837.2,4.123]
[1754568501928,0.41802148,3837.7,3837.2,6.72905501]
[1754568502138,3.79445592,3837.7,3837.2,4.2534]
[1754568502339,3.70181477,3837.6,3837.2,4.2534]
[1754568502539,1.096,3837.5,3837.3,4.12]
[1754568502745,0.4557,3837.5,3837.3,4.12]
[1754568503056,0.6403,3837.4,3837.3,4.12]
[1754568503364,1.18872148,3837.7,3837.3,4.12]
[1754568503574,2.60588064,3837.5,3837.3,4.12]
[1754568503767,2.60593109,3837.4,3837.3,4.12]
[1754568503921,3.24623109,3837.4,3837.3,4.12]
[1754568504119,1.096,3837.4,3837.3,4.118]
[1754568504445,1.32590307,3837.4,3837.3,4.116]
[1754568504624,4.06223416,3837.4,3837.3,4.116]
[1754568505188,1.91200307,3837.4,3836.8,0.1304]
[1754568505335,1.096,3837.3,3836.4,0.1314]
[1754568505535,0.1304,3836.9,3836.5,4.115]
[1754568505833,15.1403,3836.8,3836.5,4.115]
[1754568506680,0.6403,3836.7,3836.5,4.115]
[1754568506858,0.6403,3836.6,3836.4,0.1314]
[1754568507063,1.096,3836.6,3836.5,4.116]
[1754568507236,15.596,3836.6,3836.4,0.1314]
[1754568507438,1.096,3836.5,3836.4,0.001]
[1754568507635,3.70254242,3836.5,3836.4,4.114]
[1754568508486,1.096,3836.5,3836.4,4.114]
[1754568509947,3.70254242,3836.5,3836.4,0.001]
[1754568510172,5.66623025,3836.5,3836.4,0.001]
[1754568510339,8.66623025,3836.5,3836.4,0.001]
[1754568510942,23.16623025,3836.5,3836.4,0.001]
[1754568513980,5.60674625,3836.2,3836.1,0.001]
[1754568514184,12.01375495,3836.2,3836.1,0.001]
[1754568514480,13.10975495,3836.2,3836.1,0.001]
[1754568514694,0.1304,3836.2,3836.1,0.001]
[1754568514877,17.23714625,3836.2,3836.1,0.001]
[1754568516083,18.33314625,3836.2,3836.1,0.001]
[1754568518587,17.87744625,3836.2,3836.1,0.001]
[1754568518755,17.23714625,3836.2,3836.1,0.001]
[1754568518956,2.73714625,3836.2,3836.1,0.001]
[1754568519288,3.83314625,3836.2,3836.1,0.001]
[1754568519455,18.33314625,3836.2,3836.1,0.001]
[1754568520286,21.01702553,3836.2,3836.1,0.001]
[1754568521788,25.11602553,3836.2,3836.1,0.001]
[1754568523088,10.61602553,3836.2,3836.1,0.001]
[1754568523288,3.83314625,3836.2,3836.1,0.001]
[1754568523488,17.23714625,3836.2,3836.1,0.001]
[1754568523994,18.33314625,3836.2,3836.1,0.001]
[1754568527392,22.43214625,3836.2,3836.1,0.001]
[1754568528364,18.33314625,3836.2,3836.1,0.001]
[1754568528692,24.5389886,3836.2,3836.1,0.001]
[1754568528892,24.5389886,3836.2,3835.7,0.001]
[1754568528893,2.60701809,3835.8,3835.7,0.001]
[1754568529094,6.70601809,3835.8,3835.7,0.001]
[1754568529296,2.60728998,3835.4,3835.3,0.001]
[1754568529497,24.73372758,3835.4,3835.3,0.001]
[1754568529805,25.82972758,3835.4,3835.3,0.001]
[1754568530008,25.37402758,3835.4,3835.3,0.001]
[1754568530211,14.5,3835.4,3835.3,0.001]
[1754568530369,17.10728998,3835.4,3835.3,0.001]
[1754568530766,14.5,3835.4,3835.3,0.001]
[1754568530967,4.108,3835.9,3835.3,0.001]
[1754568531175,2.60728998,3835.4,3835.3,0.001]
[1754568533068,14.5,3835.5,3835.3,0.001]
[1754568533309,17.10722857,3835.5,3835.3,0.001]
[1754568534025,14.5,3835.5,3835.3,0.001]
[1754568537013,14.5,3835.5,3835.3,0.9128]
[1754568537224,14.5,3835.5,3835.3,0.001]
[1754568537783,3.27568998,3835.4,3835.3,0.001]
[1754568538083,3.73688998,3835.4,3835.3,0.001]
[1754568538395,5.82129996,3835.4,3835.3,0.001]
[1754568538594,4.69169996,3835.4,3835.3,0.001]
[1754568538906,2.73768998,3835.4,3835.3,0.001]
[1754568539503,3.40608998,3835.4,3835.3,0.001]
[1754568539704,0.1304,3835.4,3835.3,0.001]
[1754568539907,14.5,3835.5,3835.3,0.001]
[1754568540104,14.6304,3835.5,3835.3,0.001]
[1754568540477,0.1304,3835.7,3835.3,2.60830703]
[1754568540774,0.1304,3835.7,3835.3,0.8919]
[1754568540974,14.5,3835.6,3835.3,0.4705]
[1754568541175,14.5,3835.6,3835.3,0.001]
[1754568541376,2.73749067,3835.7,3835.3,0.001]
[1754568541572,2.73750805,3835.7,3835.3,0.001]
[1754568541788,3.40590805,3835.7,3835.3,0.001]
[1754568541987,15.2988,3835.7,3835.4,4.1]
[1754568542209,14.6304,3835.7,3835.4,4.1]
[1754568542783,0.1304,3835.7,3835.4,4.1]
[1754568542983,0.1304,3835.7,3835.5,4.099]
[1754568543214,3.4059076,3835.7,3835.5,4.099]
[1754568543627,3.27555403,3835.6,3835.5,4.099]
[1754568543918,0.6684,3835.6,3835.5,4.099]
[1754568544282,2.60724232,3835.5,3835.3,0.001]
[1754568544482,1.1296,3835.5,3835.3,0.001]
[1754568544814,2.60712631,3835.7,3835.4,4.099]
[1754568545113,2.60716405,3835.6,3835.4,4.099]
[1754568545281,0.1304,3835.5,3835.4,4.099]
[1754568545484,1.26,3835.5,3835.4,4.099]
[1754568545884,0.7988,3835.5,3835.4,4.099]
[1754568547004,0.7988,3835.5,3835.3,0.001]
[1754568547208,0.1304,3835.5,3835.4,4.099]
[1754568547521,0.7988,3835.5,3835.4,4.099]
[1754568547689,0.7988,3835.5,3835.3,0.001]
[1754568548018,3.73688998,3835.4,3835.3,0.001]
[1754568550003,18.23688998,3835.4,3835.3,0.001]
[1754568554021,25.33588998,3835.4,3835.3,0.001]
[1754568555023,21.23688998,3835.4,3835.3,0.001]
[1754568556708,21.36728998,3835.4,3835.3,0.001]
[1754568556907,23.38748448,3835.4,3835.3,0.001]
[1754568559405,23.93748448,3835.4,3835.3,0.001]
[1754568561808,24.04196848,3835.4,3835.3,0.001]
[1754568562221,3.15756192,3835.0,3834.9,1e-08]
[1754568562438,19.51501666,3835.0,3834.9,1e-08]
[1754568562636,20.71921666,3835.0,3834.9,1e-08]
[1754568562836,35.21921666,3835.0,3834.9,1e-08]
[1754568566049,3.15810599,3834.2,3832.6,1.00019417]
[1754568566254,19.20422512,3834.2,3834.1,1e-08]
[1754568566437,20.27802512,3834.2,3834.1,1e-08]
[1754568566643,34.77802512,3834.2,3834.1,1e-08]
[1754568567228,21.86230599,3834.2,3834.1,1e-08]
[1754568567418,37.04269037,3834.2,3834.1,1e-08]
[1754568569826,2.6091948,3832.6,3832.5,6.264]
[1754568570033,2.60933096,3832.4,3832.3,0.001]
[1754568570228,2.73973096,3832.4,3832.3,0.001]
[1754568570445,17.23973096,3832.4,3832.3,0.4567]
[1754568571125,14.6304,3832.4,3832.3,0.8538]
[1754568571767,14.6304,3832.4,3832.3,0.001]
[1754568571923,17.23973096,3832.4,3832.3,0.001]
[1754568572622,14.6304,3832.4,3832.3,0.001]
[1754568572958,14.6304,3832.4,3832.3,0.8538]
[1754568573159,14.6304,3832.4,3832.3,0.4567]
[1754568573460,0.1304,3832.6,3832.3,3.78926805]
[1754568573666,0.1304,3832.6,3832.4,0.8528]
[1754568573975,14.5,3832.5,3832.4,0.8528]
[1754568574469,0.1304,3832.6,3832.5,2.60926288]
[1754568574754,2.60858528,3833.5,3832.9,2.6089381]
[1754568574956,14.5,3833.4,3833.0,2.60891004]
[1754568575158,14.5,3833.4,3833.1,0.8528]
[1754568575335,14.5,3833.4,3833.2,0.8528]
[1754568575533,14.5,3833.4,3833.3,0.8528]
[1754568576328,2.60842252,3833.8,3833.3,0.8528]
[1754568576529,2.60842252,3833.8,3833.4,0.8528]
[1754568576737,2.60842252,3833.8,3833.5,0.8528]
[1754568577037,14.5,3833.7,3833.5,0.8528]
[1754568577352,0.44173561,3835.0,3833.8,2.60831637]
[1754568577658,2.60794988,3834.5,3833.9,0.8528]
[1754568577859,14.5,3834.4,3833.9,0.4557]
[1754568578035,14.5,3834.4,3834.0,0.3971]
[1754568578236,14.5,3834.4,3834.0,0.8528]
[1754568578430,17.10797922,3834.4,3834.0,0.8528]
[1754568579027,17.10798216,3834.4,3834.0,0.8528]
[1754568579429,14.5,3834.4,3834.0,0.8528]
[1754568580465,17.10797619,3834.4,3834.0,0.8528]
[1754568580765,2.60804779,3834.3,3834.0,0.8528]
[1754568580967,2.60803797,3834.3,3833.7,0.8528]
[1754568581267,2.60803797,3834.3,3833.7,1.56793398]
[1754568581565,14.5,3834.4,3833.8,2.60836285]
[1754568581954,17.10797884,3834.4,3833.8,2.60836285]
[1754568582268,14.5,3834.4,3833.7,1.56793398]
[1754568582566,14.5,3834.4,3833.8,1.46387809]
[1754568582864,14.5,3834.4,3833.9,2.60831007]
[1754568583252,14.5,3834.4,3834.0,0.8528]
[1754568583954,17.10803647,3834.4,3833.8,0.61107809]
[1754568584344,14.5,3834.4,3833.8,3.21941454]
[1754568584550,14.5,3834.4,3833.9,2.73869749]
[1754568584738,17.10797651,3834.4,3833.9,4.099]
[1754568585168,17.72557651,3834.4,3833.9,4.099]
[1754568585380,17.72557651,3834.4,3833.9,4.9518]
[1754568585381,14.5,3834.4,3833.9,4.9518]
[1754568585534,14.5,3834.4,3834.0,1.01198781]
[1754568586050,14.5,3834.4,3834.0,3.62022761]
[1754568586257,14.5,3834.4,3834.0,1.01198781]
[1754568586438,17.10798091,3834.4,3834.0,0.55628781]
[1754568586762,17.10798091,3834.4,3834.1,4.099]
[1754568586968,3.22564045,3834.3,3834.1,4.099]
[1754568587684,0.6176,3834.2,3832.3,0.13699364]
[1754568587875,0.4562,3834.1,3833.0,6.0085]
[1754568588179,14.5,3834.4,3833.9,2.60828792]
[1754568588360,14.5,3834.4,3834.0,4.099]
[1754568589361,14.5,3834.4,3834.0,6.70724169]
[1754568589780,14.5,3834.4,3834.1,2.60817401]
[1754568589986,2.6076795,3834.9,3834.2,2.60808667]
[1754568590161,2.60762992,3834.9,3834.3,2.6080263]
[1754568590361,14.5,3834.8,3834.3,2.6080263]
[1754568590765,14.5,3834.8,3834.4,2.60796269]
[1754568590967,14.5,3834.8,3834.5,4.098]
[1754568591267,14.5,3834.8,3834.5,7.15739334]
[1754568591480,0.44173561,3835.0,3834.6,0.8486]
[1754568591682,0.44173561,3835.0,3834.9,2.60762992]
[1754568592182,0.44173561,3835.0,3834.9,3.45622992]
[1754568592487,0.44173561,3835.0,3834.9,3.05912992]
[1754568592652,0.44173561,3835.0,3834.9,8.1606287]
[1754568592980,0.44173561,3835.0,3834.9,4.0626287]
[1754568593181,0.44173561,3835.0,3834.9,4.098]
[1754568593381,1.02433561,3835.0,3834.9,4.098]
[1754568594552,0.44173561,3835.0,3834.9,4.098]
[1754568594762,0.44373561,3835.0,3834.9,4.098]
[1754568595680,0.44373561,3835.0,3834.9,6.70562992]
[1754568595887,0.44373561,3835.0,3834.9,4.098]
[1754568596095,0.44373561,3835.0,3834.9,6.70562992]
[1754568596579,0.44373561,3835.0,3834.9,4.098]
[1754568596980,1.02633561,3835.0,3834.9,4.098]
[1754568597186,0.44373561,3835.0,3834.9,4.098]
[1754568598679,1.02633561,3835.0,3834.9,4.097]
[1754568600160,1.48533561,3835.0,3834.9,4.097]
[1754568600356,0.44373561,3835.0,3834.9,4.097]
[1754568600657,1.48533561,3835.0,3834.9,4.097]
[1754568600862,1.48533561,3835.0,3834.9,8.397]
[1754568601189,1.48533561,3835.0,3834.9,4.3]
[1754568601491,0.44373561,3835.0,3834.9,8.397]
[1754568601790,4.09289753,3835.0,3834.9,4.3]
[1754568602093,2.6077662,3834.7,3833.9,10.564]
[1754568602389,2.60808372,3834.3,3834.0,4.096]
[1754568602604,2.73848372,3834.3,3834.0,4.096]
[1754568602757,1.0416,3834.2,3834.0,4.096]
[1754568603187,0.459,3834.2,3834.1,4.096]
[1754568603388,0.1304,3834.3,3834.1,4.096]
[1754568603603,0.1304,3834.3,3833.9,6.264]
[1754568603784,0.5826,3834.2,3834.0,4.096]
[1754568603987,0.5826,3834.1,3834.0,4.096]
[1754568605696,1.0416,3834.1,3834.0,4.096]
[1754568607767,0.5826,3834.1,3834.0,4.096]
[1754568608164,0.5826,3834.1,3833.9,6.264]
[1754568608367,0.459,3834.1,3834.0,4.096]
[1754568609167,0.459,3834.1,3833.9,6.264]
[1754568609168,2.60824204,3834.0,3833.9,6.264]
[1754568609365,3.06724204,3834.0,3833.3,2.73910077]
[1754568609603,3.32132351,3833.9,3833.4,4.096]
[1754568609792,2.73872351,3833.9,3833.5,4.3]
[1754568610104,3.65002554,3833.8,3833.6,4.096]
[1754568610321,1.0416,3833.7,3833.6,4.096]
[1754568610621,1.0416,3833.7,3833.5,4.3]
[1754568610622,2.60851419,3833.6,3833.3,0.1304]
[1754568610830,2.60846379,3833.7,3833.4,4.096]
[1754568611038,1.0416,3833.6,3833.4,4.096]
[1754568611333,1.172,3833.6,3833.4,4.096]
[1754568611627,0.1304,3833.6,3833.4,4.096]
[1754568612031,0.1304,3833.6,3833.4,6.70460957]
[1754568612199,0.1304,3833.8,3833.4,4.096]
[1754568612402,0.1304,3833.8,3833.3,2.73909545]
[1754568612403,1.0416,3833.7,3833.3,0.1304]
[1754568612720,0.1304,3833.4,3833.2,0.001]
[1754568612917,0.1304,3833.4,3833.3,4.096]
[1754568613083,0.5826,3833.6,3833.3,4.096]
[1754568613289,0.1304,3833.7,3833.3,6.70470423]
[1754568613588,0.1304,3833.8,3833.4,2.60860958]
[1754568613791,0.5826,3833.9,3833.5,4.096]
[1754568614030,0.713,3833.9,3833.5,4.096]
[1754568614185,0.1304,3833.9,3833.5,5.36310338]
[1754568614385,0.5826,3834.3,3833.8,2.73873175]
[1754568614585,0.5826,3834.2,3833.9,4.096]
[1754568614829,0.5826,3834.2,3833.9,6.70429885]
[1754568615148,0.5826,3834.3,3833.9,6.70429885]
[1754568615431,0.5826,3834.3,3833.9,4.096]
[1754568615629,0.5826,3834.3,3833.2,2.60974337]
[1754568615630,0.459,3834.2,3833.2,0.001]
[1754568615831,1.0416,3834.2,3833.3,4.096]
[1754568615989,2.60844642,3833.7,3833.3,4.096]
[1754568616190,2.6085449,3833.6,3833.3,4.096]
[1754568616413,2.6085449,3833.6,3833.5,0.001]
[1754568616585,2.60846176,3833.7,3833.5,0.001]
[1754568616784,2.6083796,3833.8,3833.6,4.096]
[1754568617029,0.459,3833.7,3833.6,4.096]
[1754568617619,1.0416,3833.7,3833.6,4.096]
[1754568618018,3.65004614,3833.7,3833.6,4.096]
[1754568618215,0.5826,3833.7,3833.6,4.096]
[1754568618432,2.60838269,3833.8,3833.6,4.096]
[1754568618625,0.5826,3833.7,3833.6,4.096]
[1754568618829,0.459,3834.1,3833.6,4.096]
[1754568619212,0.5826,3834.0,3833.6,4.096]
[1754568620393,0.002,3834.2,3833.8,2.60832367]
[1754568620620,0.002,3834.2,3833.9,4.096]
[1754568620824,2.61011633,3834.2,3833.9,4.096]
[1754568621024,0.6105,3834.1,3833.9,4.096]
[1754568621502,1.0417,3834.0,3833.5,2.60953117]
[1754568621723,1.0417,3834.0,3833.6,4.095]
[1754568622033,0.6105,3833.9,3833.6,4.095]
[1754568622417,0.6105,3833.8,3833.7,4.095]
[1754568622736,1.0417,3833.8,3833.7,4.095]
[1754568622934,0.6105,3833.8,3833.7,4.095]
[1754568623437,0.002,3834.2,3833.7,4.095]
[1754568623800,0.002,3834.2,3833.8,2.60837539]
[1754568624117,0.002,3834.2,3833.7,4.095]
[1754568624321,0.002,3834.2,3833.7,6.70343651]
[1754568624511,1.0417,3834.1,3833.7,4.095]
[1754568624709,2.60820858,3834.1,3833.7,4.095]
[1754568625034,1.0417,3834.0,3833.8,4.095]
[1754568625447,0.6105,3833.9,3833.8,4.095]
[1754568625649,0.7409,3833.9,3833.8,4.095]
[1754568625834,0.1304,3833.9,3833.8,4.095]
[1754568626533,0.7409,3833.9,3833.8,4.095]
[1754568627723,1.1721,3833.9,3833.8,4.095]
[1754568628337,3.78041007,3833.9,3833.8,4.095]
[1754568628738,1.1721,3833.9,3833.8,4.095]
[1754568629227,15.2409,3833.9,3833.8,4.095]
[1754568629425,15.6721,3833.9,3833.8,4.095]
[1754568629656,18.28041007,3833.9,3833.8,4.095]
[1754568629853,18.28041007,3833.9,3833.5,0.001]
[1754568629854,17.76116213,3833.9,3833.5,0.001]
[1754568630126,2.73891419,3833.6,3833.5,0.001]
[1754568630452,0.1304,3833.6,3833.5,8.395]
[1754568630763,0.7409,3833.6,3833.5,8.395]
[1754568630960,1.1721,3833.6,3833.5,8.395]
[1754568632162,0.1304,3833.6,3833.5,8.395]
[1754568632790,15.1105,3833.9,3833.5,8.395]
[1754568632942,0.1304,3833.7,3833.5,8.395]
[1754568634246,14.5,3833.9,3833.5,11.00357365]
[1754568634446,14.6304,3833.9,3833.5,11.45597365]
[1754568634783,14.6304,3833.9,3833.6,2.60851286]
[1754568634977,14.6304,3833.9,3833.5,11.00356178]
[1754568635155,15.2409,3833.9,3833.5,8.395]
[1754568635680,1.0417,3833.8,3833.5,0.001]
[1754568635884,0.1304,3833.6,3833.5,4.095]
[1754568636242,3.78061419,3833.6,3833.5,4.095]
[1754568636579,4.02501875,3833.6,3833.5,0.001]
[1754568636790,6.24200096,3833.6,3833.5,0.001]
[1754568636974,9.24200096,3833.6,3833.5,0.001]
[1754568637480,23.74200096,3833.6,3833.5,0.001]
[1754568639667,27.83600096,3833.6,3833.5,0.001]
[1754568639863,39.5733705,3833.6,3833.5,1e-08]